bitfinex-derivatives/quotes_ETHF0:USTF0_20240907
["timestamp","ask_amount","ask_price","bid_price","bid_amount"]
[1725668136814,3.52161,2231.2,2230.7,3.5985]
[1725668137018,3.52161,2231.2,2230.7,3.91237]
[1725668137218,3.52161,2231.2,2230.8,0.31386]
[1725668138410,0.31381,2231.2,2230.8,0.31386]
[1725668138615,3.52161,2231.2,2230.8,0.31386]
[1725668138919,0.31381,2231.2,2230.8,0.31386]
[1725668139119,0.3138,2231.3,2230.7,5.3341113]
[1725668139321,0.31381,2231.2,2230.9,0.31385]
[1725668139919,0.31381,2231.2,2230.8,0.31385]
[1725668140120,0.31384,2231.0,2230.7,5.3341113]
[1725668140321,0.31384,2231.0,2230.8,2.24286447]
[1725668140516,0.31386,2230.8,2230.7,4.9434113]
[1725668140817,0.31388,2230.7,2230.5,1.7356113]
[1725668141026,0.31388,2230.7,2230.4,2.0495213]
[1725668141220,0.31388,2230.7,2230.5,3.97884878]
[1725668141415,0.31388,2230.7,2230.5,1.7356113]
[1725668141715,0.31388,2230.7,2230.4,2.0495213]
[1725668142019,0.31388,2230.7,2230.5,3.9788645]
[1725668142322,0.31388,2230.7,2230.5,1.7356113]
[1725668143020,0.31387,2230.8,2230.5,2.0495113]
[1725668143210,1.15375,2231.5,2230.6,9.93421134]
[1725668143412,0.3693,2231.5,2230.9,3.2078]
[1725668143613,0.7844,2231.6,2231.3,0.31379]
[1725668143614,0.31375,2231.6,2231.3,0.31379]
[1725668143815,0.31377,2231.5,2231.2,5.2572113]
[1725668144018,0.31377,2231.5,2231.3,2.24248446]
[1725668144222,3.5713,2231.7,2231.2,4.9434113]
[1725668144522,0.31379,2231.3,2231.2,4.9434113]
[1725668144729,0.31379,2231.3,2231.2,5.45025769]
[1725668145025,0.31381,2231.2,2231.1,1.7356113]
[1725668145214,0.31381,2231.2,2231.1,2.24275183]
[1725668146021,0.31382,2231.1,2231.0,2.1319113]
[1725668146222,0.31382,2231.1,2231.0,4.37469097]
[1725668146725,0.31382,2231.1,2231.0,2.63907967]
[1725668147512,0.31382,2231.1,2231.0,2.24277967]
[1725668147716,0.31383,2231.0,2230.9,1.7356113]
[1725668148023,0.31384,2231.0,2230.7,2.4321913]
[1725668148221,0.31383,2231.1,2230.8,2.24298392]
[1725668148417,0.31381,2231.2,2231.0,0.31383]
[1725668148625,1.15469,2231.6,2231.0,2.0494413]
[1725668148626,0.3138,2231.3,2231.0,2.0494413]
[1725668148923,0.3138,2231.3,2231.1,2.24270177]
[1725668149136,0.31381,2231.2,2231.1,1.7356113]
[1725668149420,0.3138,2231.3,2231.1,2.24256203]
[1725668149624,0.3138,2231.3,2231.0,2.0494413]
[1725668149825,0.3138,2231.3,2231.1,2.2426749]
[1725668150126,0.31379,2231.4,2231.1,0.31382]
[1725668150321,0.31379,2231.3,2231.1,2.0494313]
[1725668150628,0.31379,2231.3,2231.2,0.3635]
[1725668152927,0.3635,2231.7,2231.2,0.3635]
[1725668153326,0.31373,2231.8,2231.5,0.31376]
[1725668153627,0.78426,2232.0,2231.6,0.31375]
[1725668153826,0.31373,2231.8,2231.7,0.3789]
[1725668154529,0.78438,2231.6,2231.3,1.7356113]
[1725668154730,0.31379,2231.4,2231.2,1.7356113]
[1725668155028,0.31379,2231.3,2231.2,1.7356113]
[1725668155228,0.31379,2231.3,2231.2,3.97820504]
[1725668155429,3.99218,2231.6,2231.2,3.97820504]
[1725668155627,3.99218,2231.6,2231.2,1.7356113]
[1725668155822,0.31379,2231.3,2231.2,1.7356113]
[1725668156025,0.31379,2231.3,2231.2,3.97821194]
[1725668156530,0.31381,2231.2,2231.1,0.3789]
[1725668158028,0.31383,2231.0,2230.9,1.7356113]
[1725668158224,4.8712,2231.1,2230.8,3.2078]
[1725668158526,4.8712,2231.1,2230.8,4.9434113]
[1725668158527,0.31384,2231.0,2230.8,4.9434113]
[1725668158727,0.31384,2231.0,2230.8,3.2078]
[1725668159635,0.31385,2230.9,2230.8,3.2078]
[1725668159836,0.31385,2230.9,2230.8,5.4508134]
[1725668160435,0.31384,2231.0,2230.8,7.1864247]
[1725668160637,0.31384,2231.0,2230.8,4.9434113]
[1725668161030,0.31385,2230.9,2230.8,4.9434113]
[1725668161227,0.31385,2230.9,2230.8,7.18639244]
[1725668161630,0.31385,2230.9,2230.8,5.45078114]
[1725668162137,0.31385,2230.9,2230.8,7.18639244]
[1725668164134,0.31386,2230.8,2230.7,1.7356113]
[1725668164334,0.31386,2230.8,2230.7,3.97861715]
[1725668164734,0.31388,2230.7,2230.5,2.70529901]
[1725668164936,0.31388,2230.7,2230.6,2.24304193]
[1725668165239,0.31388,2230.7,2230.6,3.98786812]
[1725668165544,0.31387,2230.8,2230.6,3.98786812]
[1725668165735,0.31385,2230.9,2230.7,5.76471193]
[1725668165936,0.31385,2230.9,2230.8,2.24301803]
[1725668167741,0.31386,2230.8,2230.7,3.2078]
[1725668168041,0.31386,2230.8,2230.7,5.45098695]
[1725668168238,0.69476,2230.8,2230.7,3.2078]
[1725668169048,0.69476,2230.8,2230.3,4.3741552]
[1725668169049,5.64796,2230.8,2230.3,4.3741552]
[1725668169248,5.64796,2230.8,2230.4,2.24329602]
[1725668169249,0.3139,2230.6,2230.4,2.24329602]
[1725668169539,0.3139,2230.5,2230.4,3.2078]
[1725668169738,0.3139,2230.6,2230.4,5.45103642]
[1725668169942,0.3139,2230.5,2230.4,3.2078]
[1725668172242,0.31392,2230.4,2230.3,0.386]
[1725668172540,5.26797,2230.5,2230.1,4.95262619]
[1725668172541,0.31395,2230.2,2230.1,4.95262619]
[1725668172741,0.31395,2230.2,2230.1,7.19621647]
[1725668173246,0.31395,2230.2,2230.1,5.45139028]
[1725668173545,10.484,2230.2,2229.9,1.74482619]
[1725668173749,0.31399,2229.9,2229.8,3.2078]
[1725668174143,4.79879,2229.9,2229.8,3.2078]
[1725668174335,0.31399,2230.0,2229.8,3.2078]
[1725668174539,0.31399,2230.0,2229.9,0.3997]
[1725668175837,3.45455536,2230.6,2229.9,0.3997]
[1725668175838,0.7847,2230.7,2230.1,0.31395]
[1725668176041,0.7847,2230.7,2230.1,3.52175]
[1725668176042,0.31392,2230.4,2230.1,3.52175]
[1725668176247,3.5892,2230.9,2230.2,3.98843179]
[1725668176446,0.31389,2230.7,2230.4,3.2078]
[1725668176652,0.31389,2230.6,2230.5,0.3833]
[1725668176947,0.31392,2230.4,2230.2,1.74482619]
[1725668177148,0.78473,2230.6,2230.2,2.12812619]
[1725668177149,0.31393,2230.3,2230.2,2.12812619]
[1725668177345,0.31395,2230.2,2230.1,3.2078]
[1725668177543,0.31397,2230.0,2229.9,2.12812619]
[1725668177852,0.31397,2230.0,2229.9,0.3833]
[1725668178456,0.31401,2229.8,2229.6,4.95262619]
[1725668178749,0.314,2229.9,2229.6,3.90513]
[1725668179045,0.314,2229.9,2229.6,5.64995619]
[1725668179255,0.31401,2229.8,2229.6,3.5911]
[1725668180444,0.314,2229.8,2229.6,3.5911]
[1725668181065,0.31402,2229.7,2229.6,3.5911]
[1725668182052,0.314,2229.9,2229.6,3.90513]
[1725668182259,0.314,2229.9,2229.6,3.5911]
[1725668182461,0.31401,2229.8,2229.6,3.5911]
[1725668183157,0.31402,2229.7,2229.6,3.5911]
[1725668183462,0.31402,2229.7,2229.6,0.3833]
[1725668184055,0.31406,2229.4,2229.3,3.583]
[1725668184260,0.31405,2229.5,2229.3,3.9671]
[1725668184563,0.31406,2229.4,2229.3,3.9671]
[1725668184956,0.31406,2229.4,2229.3,3.5919]
[1725668185357,0.31406,2229.5,2229.3,3.5919]
[1725668185662,0.31406,2229.4,2229.3,3.5919]
[1725668186264,0.31405,2229.5,2229.3,3.5919]
[1725668186558,4.11,2230.4,2229.4,5.27076]
[1725668186762,4.11,2230.4,2229.3,3.5919]
[1725668186763,0.31394,2230.3,2229.8,3.2078]
[1725668187059,0.7551,2230.7,2230.1,3.52176]
[1725668187263,0.31392,2230.4,2230.1,3.2078]
[1725668187566,1.53982,2230.7,2230.1,3.2078]
[1725668187567,0.31394,2230.3,2230.1,3.2078]
[1725668187752,0.31393,2230.4,2230.1,3.2078]
[1725668187958,0.31391,2230.5,2230.1,3.52176]
[1725668188259,3.52171,2230.5,2230.2,0.31395]
[1725668188455,0.31392,2230.4,2230.1,3.52176]
[1725668188963,0.31394,2230.3,2230.1,3.2078]
[1725668189358,0.31395,2230.2,2230.1,3.2078]
[1725668191154,0.31397,2230.0,2229.9,0.3899]
[1725668191866,0.31401,2229.8,2229.5,4.36784366]
[1725668192060,0.31401,2229.8,2229.6,0.3633]
[1725668192259,0.314,2229.9,2229.6,0.3633]
[1725668192462,0.314,2229.8,2229.6,0.3633]
[1725668192865,0.314,2229.9,2229.6,0.3633]
[1725668194465,0.31397,2230.0,2229.6,0.67733]
[1725668194665,0.31399,2229.9,2229.6,0.3633]
[1725668194872,0.31398,2230.0,2229.6,1.83737366]
[1725668195163,3.5877,2230.1,2229.6,1.83737366]
[1725668195164,0.69386,2230.1,2229.7,0.314]
[1725668195362,0.31396,2230.1,2229.7,0.31401]
[1725668195667,3.5732,2230.2,2229.8,0.314]
[1725668195668,3.88715,2230.2,2229.8,0.314]
[1725668195868,0.67935,2230.2,2229.8,0.314]
[1725668196269,0.31398,2230.0,2229.7,1.16004366]
[1725668196461,0.31398,2230.0,2229.6,1.83736366]
[1725668197170,0.31397,2230.1,2229.8,3.2078]
[1725668197869,0.31398,2230.0,2229.8,3.2078]
[1725668198071,1.15029,2230.2,2229.8,3.2078]
[1725668198659,0.31399,2229.9,2229.8,3.2078]
[1725668198866,0.3654,2230.2,2229.8,3.2078]
[1725668199170,0.31397,2230.1,2229.8,3.2078]
[1725668199371,0.31398,2230.0,2229.8,3.2078]
[1725668200878,0.7848,2230.4,2229.8,3.2078]
[1725668200879,0.31397,2230.1,2229.8,3.2078]
[1725668201174,0.31398,2230.0,2229.8,3.2078]
[1725668201668,0.31399,2229.9,2229.8,3.2078]
[1725668202178,0.31396,2230.1,2229.8,3.2078]
[1725668202471,3.52168,2230.7,2230.0,2.52976619]
[1725668202672,3.52168,2230.7,2230.4,0.31392]
[1725668202969,0.31389,2230.6,2230.3,3.2078]
[1725668203277,3.2078,2230.7,2230.3,3.2078]
[1725668203484,0.3139,2230.6,2230.3,3.52173]
[1725668203667,3.52168,2230.7,2230.4,0.31392]
[1725668203869,0.3139,2230.6,2230.3,4.36911569]
[1725668204170,3.2078,2230.7,2230.3,4.36911569]
[1725668204171,0.31392,2230.4,2230.3,4.36911569]
[1725668204366,0.31392,2230.4,2230.3,3.2078]
[1725668205464,4.79792,2230.4,2230.3,3.2078]
[1725668205774,8.4766,2230.4,2230.0,1.16131569]
[1725668205974,0.31396,2230.1,2230.0,0.3724]
[1725668206876,3.5844,2230.3,2230.0,0.3724]
[1725668206877,0.31396,2230.2,2230.0,0.3724]
[1725668207175,0.31396,2230.1,2230.0,0.3724]
[1725668207472,0.31396,2230.2,2230.0,0.3724]
[1725668207677,3.2078,2230.8,2230.1,4.484]
[1725668207867,0.3139,2230.5,2230.4,3.2078]
[1725668208170,0.3649,2230.9,2230.4,4.68303569]
[1725668208171,0.31388,2230.7,2230.4,4.68303569]
[1725668208375,0.3649,2230.9,2230.5,0.3728]
[1725668208376,0.31389,2230.6,2230.5,0.3728]
[1725668208783,0.31392,2230.4,2230.3,1.16131569]
[1725668208971,0.31393,2230.3,2230.2,1.16131569]
[1725668209275,0.31393,2230.3,2230.1,4.74191569]
[1725668209481,4.38841,2230.7,2230.1,4.74191569]
[1725668209482,0.31395,2230.2,2230.1,4.74191569]
[1725668209680,0.31395,2230.2,2230.1,0.3728]
[1725668209976,0.31394,2230.3,2230.1,0.3728]
[1725668210583,0.31393,2230.3,2230.1,0.3728]
[1725668210976,0.31395,2230.2,2230.1,0.3728]
[1725668212978,0.31394,2230.3,2230.1,1.53411569]
[1725668213183,0.31394,2230.3,2230.2,1.16131569]
[1725668213386,0.31395,2230.2,2230.1,2.11762619]
[1725668213590,0.31395,2230.2,2230.1,4.3612255]
[1725668213888,0.31395,2230.2,2230.1,1.5357654]
[1725668214280,0.31395,2230.2,2230.1,1.1629654]
[1725668215284,3.2078,2230.3,2230.1,1.1629654]
[1725668215675,0.31395,2230.2,2230.1,1.1629654]
[1725668215884,0.31391,2230.5,2230.1,7.51037339]
[1725668216078,0.31391,2230.5,2230.3,1.16320463]
[1725668216280,0.31392,2230.4,2230.3,1.16320463]
[1725668216475,0.31392,2230.4,2230.3,3.40667581]
[1725668217284,0.31392,2230.4,2230.3,1.16320463]
[1725668218387,0.31395,2230.2,2230.1,1.16320463]
[1725668218586,0.31395,2230.2,2230.1,3.40779063]
[1725668219889,0.31395,2230.2,2230.1,3.98852276]
[1725668220388,0.31395,2230.2,2230.1,1.16412425]
[1725668220586,12.36769,2230.2,2230.1,1.16412425]
[1725668220887,0.31399,2229.9,2229.8,0.82770978]
[1725668221091,0.314,2229.8,2229.7,3.2078]
[1725668221380,0.314,2229.8,2229.7,7.19882606]
[1725668221780,5.49597707,2229.8,2229.5,1.74697263]
[1725668221981,0.3688,2229.7,2229.4,1.74697263]
[1725668222188,0.31405,2229.5,2229.4,1.74697263]
[1725668222383,0.31405,2229.5,2229.4,3.99139354]
[1725668222895,0.31405,2229.5,2229.4,2.24442091]
[1725668223089,0.31405,2229.5,2229.3,1.74697263]
[1725668224982,0.3684,2230.0,2229.3,1.74697263]
[1725668225184,0.68238,2230.0,2229.6,0.31402]
[1725668225493,0.31399,2229.9,2229.7,4.39341371]
[1725668225781,0.3684,2230.0,2229.7,4.39341371]
[1725668225782,0.314,2229.8,2229.7,0.4023]
[1725668225988,0.3684,2230.0,2229.7,0.4023]
[1725668225989,0.314,2229.9,2229.7,2.64637979]
[1725668226193,0.314,2229.8,2229.7,0.4023]
[1725668226589,0.3684,2230.0,2229.7,0.4023]
[1725668226590,0.314,2229.9,2229.7,0.4023]
[1725668226786,0.314,2229.9,2229.7,2.14927263]
[1725668227599,0.3684,2230.0,2229.7,2.14927263]
[1725668227600,0.314,2229.8,2229.7,2.14927263]
[1725668227794,0.314,2229.9,2229.7,4.39328653]
[1725668228090,0.314,2229.9,2229.7,0.4023]
[1725668229086,0.314,2229.8,2229.7,0.4023]
[1725668229691,0.31402,2229.7,2229.5,4.95477263]
[1725668229892,0.31402,2229.7,2229.6,2.24423927]
[1725668230193,0.31402,2229.7,2229.5,4.95477263]
[1725668230194,0.31403,2229.6,2229.5,3.2078]
[1725668230491,0.31403,2229.7,2229.5,3.2078]
[1725668230684,0.3684,2230.0,2229.6,2.24417362]
[1725668230889,3.89018,2230.0,2229.6,2.06100263]
[1725668231086,3.89018,2230.0,2229.7,3.99110568]
[1725668231087,0.31399,2229.9,2229.7,3.99110568]
[1725668231285,0.31399,2229.9,2229.6,2.44940263]
[1725668231485,0.31399,2229.9,2229.7,3.9911006]
[1725668231686,0.31399,2229.9,2229.6,2.13537263]
[1725668231883,0.314,2229.8,2229.7,2.24412635]
[1725668232196,0.314,2229.9,2229.7,2.24419477]
[1725668232395,0.31397,2230.1,2229.7,2.06098263]
[1725668232594,3.52177,2230.1,2229.7,2.06098263]
[1725668232890,0.31398,2230.0,2229.8,2.24397051]
[1725668233092,0.31393,2230.4,2230.0,0.31397]
[1725668233295,0.31394,2230.3,2230.0,1.74697263]
[1725668233595,3.2078,2230.5,2230.0,1.74697263]
[1725668233596,0.31392,2230.4,2230.1,2.24368269]
[1725668233792,0.31392,2230.4,2230.1,0.31396]
[1725668233996,0.31392,2230.4,2230.1,1.74697263]
[1725668234288,0.31394,2230.3,2230.0,1.74697263]
[1725668234596,0.31395,2230.2,2230.0,1.74697263]
[1725668235696,0.31394,2230.3,2230.0,2.06094263]
[1725668235991,0.31393,2230.4,2230.0,2.06094263]
[1725668236194,0.31393,2230.4,2230.1,2.24370429]
[1725668236394,0.31393,2230.3,2230.0,1.74697263]
[1725668236596,0.31393,2230.3,2230.1,2.24372271]
[1725668236798,0.31393,2230.3,2230.0,1.74697263]
[1725668237299,0.31393,2230.4,2230.1,2.24369652]
[1725668237500,0.4207366,2230.9,2230.2,9.0451344]
[1725668237684,0.4207366,2230.9,2230.6,2.05805829]
[1725668237890,0.31387,2230.8,2230.6,2.24324513]
[1725668238095,0.31384,2231.0,2230.7,3.98718068]
[1725668238299,0.31384,2231.0,2230.6,2.44982555]
[1725668238603,4.89451,2231.3,2230.8,3.2078]
[1725668238604,4.11,2231.3,2230.8,3.2078]
[1725668238805,4.11,2231.7,2231.3,0.31378]
[1725668239096,0.31373,2231.8,2231.5,1.74189443]
[1725668239395,4.11,2232.1,2231.7,4.94969443]
[1725668239592,4.11,2232.1,2232.0,3.2078]
[1725668239896,0.31367,2232.2,2232.0,5.4508454]
[1725668240196,0.31364,2232.4,2231.9,1.74189443]
[1725668240398,3.2078,2232.5,2231.8,1.74189443]
[1725668240590,3.52149,2232.1,2231.7,4.94969443]
[1725668240794,3.2078,2232.3,2231.7,3.2078]
[1725668241092,3.2078,2232.3,2231.5,1.74189443]
[1725668241093,0.31371,2231.9,2231.5,1.74189443]
[1725668241296,5.41668619,2232.2,2231.4,0.392]
[1725668241597,0.3137,2232.0,2231.4,0.392]
[1725668241797,3.5215,2232.0,2231.4,0.392]
[1725668242298,0.3137,2232.0,2231.4,0.392]
[1725668242595,3.5215,2232.0,2231.4,0.392]
[1725668242805,3.2078,2232.0,2231.4,0.392]
[1725668243098,3.5215,2232.0,2231.4,0.392]
[1725668243701,0.31371,2231.9,2231.4,0.392]
[1725668244200,3.5215,2232.0,2231.4,0.392]
[1725668244793,0.31371,2231.9,2231.4,0.392]
[1725668245199,3.2078,2231.6,2231.0,3.2078]
[1725668245501,0.31376,2231.5,2231.0,3.2078]
[1725668246094,0.31378,2231.4,2231.0,3.2078]
[1725668247097,0.31377,2231.5,2231.0,3.2078]
[1725668247400,0.31378,2231.4,2231.0,3.2078]
[1725668247803,0.31379,2231.3,2231.0,3.2078]
[1725668247995,0.31379,2231.4,2231.0,3.2078]
[1725668250299,4.11,2231.9,2231.3,3.2078]
[1725668250504,0.31373,2231.8,2231.4,0.3698]
[1725668251099,0.31374,2231.7,2231.4,0.3698]
[1725668251301,0.31376,2231.5,2231.4,0.3698]
[1725668251497,0.70586,2231.6,2231.4,0.3698]
[1725668252698,0.31376,2231.5,2231.4,0.3698]
[1725668253103,0.31376,2231.6,2231.4,0.3698]
[1725668253599,0.31376,2231.5,2231.4,0.3698]
[1725668254895,0.31376,2231.6,2231.4,0.3698]
[1725668255401,0.3899,2232.1,2231.4,4.8514]
[1725668255709,0.31371,2231.9,2231.6,3.2078]
[1725668255917,0.31372,2231.8,2231.4,0.68357]
[1725668256307,0.31372,2231.8,2231.5,3.52156]
[1725668256605,0.31372,2231.8,2231.5,3.2078]
[1725668256803,0.31374,2231.7,2231.5,3.2078]
[1725668259413,0.31373,2231.8,2231.5,3.2078]
[1725668259801,0.78428,2231.9,2231.4,0.3698]
[1725668260005,0.31376,2231.6,2231.4,0.3698]
[1725668260302,0.31376,2231.5,2231.4,0.3698]
[1725668260809,0.31379,2231.4,2231.0,3.52163]
[1725668261103,0.31379,2231.4,2231.1,0.374]
[1725668261304,0.31377,2231.5,2231.1,0.68782]
[1725668261500,0.31378,2231.4,2231.1,0.374]
[1725668262206,0.31377,2231.5,2231.1,0.68782]
[1725668262708,0.31378,2231.4,2231.1,0.374]
[1725668263809,0.31378,2231.4,2231.1,3.89562]
[1725668264110,0.31377,2231.5,2231.1,3.5818]
[1725668264310,0.31377,2231.5,2231.1,3.89561]
[1725668264708,0.31378,2231.4,2231.1,3.89562]
[1725668265111,0.31378,2231.4,2231.1,0.68782]
[1725668265318,0.31378,2231.4,2231.1,3.89562]
[1725668265809,0.31377,2231.5,2231.1,3.89562]
[1725668266211,0.31376,2231.5,2231.1,3.89562]
[1725668266617,0.31378,2231.4,2231.1,3.89562]
[1725668266923,0.31377,2231.5,2231.1,3.89562]
[1725668267217,0.31378,2231.4,2231.1,3.89562]
[1725668271809,0.4092,2231.6,2231.1,3.89562]
[1725668272208,0.31378,2231.4,2231.1,3.89562]
[1725668274010,0.4092,2231.6,2231.1,3.5818]
[1725668274314,0.4092,2231.6,2230.5,1.74189443]
[1725668274315,0.31386,2230.8,2230.5,1.74189443]
[1725668274611,0.31388,2230.7,2230.6,0.3949]
[1725668276514,0.31391,2230.5,2230.3,3.2078]
[1725668276714,3.2078,2230.7,2230.3,3.6027]
[1725668276915,0.78477,2230.5,2230.0,3.2078]
[1725668277112,0.31394,2230.3,2230.0,3.2078]
[1725668277316,0.31393,2230.4,2230.0,3.2078]
[1725668277519,0.31393,2230.3,2230.0,3.2078]
[1725668277907,3.4728,2230.6,2230.0,3.2078]
[1725668278308,6.6806,2230.6,2230.0,3.52177]
[1725668278518,0.31392,2230.4,2230.0,3.52177]
[1725668278815,0.3139,2230.6,2230.2,0.31394]
[1725668279014,0.31391,2230.5,2230.2,0.31394]
[1725668279419,3.2078,2230.7,2230.2,0.31394]
[1725668279718,0.3139,2230.6,2230.3,0.31393]
[1725668280020,3.1,2230.8,2230.4,0.69401]
[1725668280213,0.31388,2230.7,2230.4,0.69401]
[1725668281620,3.2078,2231.0,2230.4,0.3801]
[1725668281929,0.31385,2231.0,2230.6,0.31388]
[1725668282219,0.31385,2231.0,2230.7,0.31388]
[1725668283517,0.68663,2231.1,2230.7,0.31388]
[1725668283821,0.68663,2231.1,2230.7,0.31387]
[1725668284023,3.89443,2231.1,2230.8,0.31386]
[1725668284219,3.4138,2231.3,2230.9,0.3707]
[1725668284416,7.587,2231.7,2230.9,3.5785]
[1725668284622,0.31375,2231.6,2231.3,3.52158]
[1725668284824,0.31375,2231.6,2231.4,0.3707]
[1725668285119,4.11,2231.7,2231.4,0.3707]
[1725668285120,0.31376,2231.5,2231.4,0.3707]
[1725668285319,3.99221,2231.6,2231.1,1.74189443]
[1725668285524,3.99221,2231.6,2231.1,2.42641443]
[1725668285722,3.2078,2231.6,2231.2,3.98441876]
[1725668285924,3.2078,2231.6,2231.1,2.11259443]
[1725668286125,0.31379,2231.3,2231.2,2.24248425]
[1725668286823,0.31381,2231.2,2231.1,0.3707]
[1725668288323,0.31381,2231.2,2231.0,3.2078]
[1725668288324,0.31382,2231.2,2231.0,3.2078]
[1725668288634,0.31382,2231.1,2231.0,3.2078]
[1725668288832,0.31381,2231.2,2231.0,3.2078]
[1725668289432,0.31381,2231.2,2230.9,1.74189443]
[1725668289618,0.31381,2231.2,2231.0,2.24277859]
[1725668289819,3.43599026,2231.4,2230.9,1.74189443]
[1725668289820,3.2078,2231.4,2230.9,1.74189443]
[1725668290019,0.70067,2231.5,2231.1,2.05570443]
[1725668290320,0.70067,2231.5,2231.2,2.2426085]
[1725668290627,0.61531751,2231.5,2231.2,0.3138]
[1725668290927,0.61531751,2231.5,2231.3,0.4022]
[1725668290928,0.22841751,2231.5,2231.3,0.4022]
[1725668291721,0.54218751,2231.5,2231.3,0.4022]
[1725668292227,0.31378,2231.4,2231.3,0.4022]
[1725668292528,0.68089,2231.4,2231.1,4.94969443]
[1725668292715,0.3671,2231.4,2231.1,5.26351443]
[1725668292922,0.54218751,2231.5,2231.1,5.26351443]
[1725668293119,0.31378,2231.4,2231.1,4.94969443]
[1725668293527,0.31378,2231.4,2231.1,3.52162]
[1725668293726,0.22841751,2231.5,2231.2,0.31381]
[1725668293926,0.22841751,2231.5,2231.3,0.373]
[1725668294225,0.31378,2231.4,2231.3,0.373]
[1725668294931,0.53413627,2231.5,2231.3,0.373]
[1725668297128,0.31378,2231.4,2231.3,0.373]
[1725668297329,0.31378,2231.4,2231.0,2.05571443]
[1725668297530,0.31378,2231.4,2231.1,2.24264836]
[1725668297825,3.74193627,2231.5,2231.0,1.74189443]
[1725668298030,3.74193627,2231.5,2231.1,4.29832561]
[1725668298330,3.42816627,2231.5,2231.2,0.3138]
[1725668298531,0.22036627,2231.5,2231.2,0.3138]
[1725668298730,0.31376,2231.5,2231.2,0.3138]
[1725668299031,0.54130855,2231.4,2231.1,2.05570443]
[1725668299328,0.31378,2231.4,2231.2,2.24258286]
[1725668299528,0.21947861,2231.4,2231.2,2.05570443]
[1725668299726,0.31376,2231.6,2231.3,2.24243577]
[1725668299727,3.52156,2231.6,2231.3,2.24243577]
[1725668299932,0.31376,2231.5,2231.2,2.05570443]
[1725668300133,0.22500257,2231.4,2231.3,2.24242109]
[1725668300526,0.31376,2231.5,2231.2,2.05570443]
[1725668301433,0.31376,2231.5,2231.2,0.31381]
[1725668301631,0.31378,2231.4,2231.1,5.26350443]
[1725668301835,0.31378,2231.4,2231.2,2.24254218]
[1725668302133,3.52157,2231.5,2231.2,0.3138]
[1725668303234,3.2078,2231.5,2231.1,1.74189443]
[1725668303437,3.52156,2231.6,2231.3,0.31379]
[1725668303635,0.31376,2231.5,2231.4,0.3793]
[1725668305439,0.31376,2231.6,2231.4,0.3793]
[1725668306537,3.5749,2231.7,2231.2,1.74189443]
[1725668306736,0.3138,2231.3,2231.1,2.13779443]
[1725668306938,0.3138,2231.3,2231.2,2.24258265]
[1725668308837,0.31382,2231.1,2231.0,1.74189443]
[1725668309044,4.19838,2231.1,2231.0,2.24273098]
[1725668309336,0.78463,2230.9,2230.5,1.74150464]
[1725668309541,0.31388,2230.7,2230.5,1.74150464]
[1725668310232,3.2078,2230.8,2230.5,2.05540464]
[1725668310433,3.52167,2230.8,2230.5,2.05540464]
[1725668310730,0.31388,2230.7,2230.5,1.74150464]
[1725668310932,0.31389,2230.6,2230.4,1.74150464]
[1725668312436,0.31389,2230.6,2230.3,5.33120464]
[1725668312845,0.31388,2230.7,2230.4,1.74150464]
[1725668313239,0.31389,2230.6,2230.4,1.74150464]
[1725668313542,0.31389,2230.6,2230.3,3.5897]
[1725668313543,4.11,2231.3,2230.9,0.31384]
[1725668313740,4.11,2231.3,2231.0,0.3867]
[1725668313938,0.31381,2231.2,2231.0,0.3867]
[1725668314435,3.1,2231.4,2231.0,0.70053]
[1725668314645,0.31379,2231.4,2231.1,0.31382]
[1725668314937,0.31379,2231.3,2231.0,0.70053]
[1725668315143,0.31379,2231.4,2231.1,0.31382]
[1725668315540,0.3138,2231.3,2231.0,2.44060431]
[1725668316238,0.31379,2231.4,2231.1,0.31382]
[1725668316542,0.31379,2231.3,2231.1,0.31382]
[1725668316738,0.31379,2231.3,2231.1,2.05389431]
[1725668317732,0.31379,2231.3,2231.1,0.31382]
[1725668318149,3.2078,2231.5,2231.2,0.3138]
[1725668318444,0.31378,2231.4,2231.2,0.3138]
[1725668319343,4.11,2231.8,2231.6,0.31374]
[1725668319539,4.11,2231.8,2231.3,7.6894]
[1725668319540,0.31371,2231.9,2231.5,1.74007431]
[1725668319840,0.31371,2231.9,2231.6,0.3933]
[1725668320037,0.31371,2231.9,2231.6,0.70705]
[1725668320343,0.3912,2232.0,2231.7,0.31373]
[1725668320542,3.2078,2232.1,2231.8,0.31372]
[1725668320738,3.2078,2232.1,2231.8,0.31371]
[1725668320940,3.2078,2232.1,2231.7,1.74007431]
[1725668321246,3.2078,2232.1,2231.9,0.3137]
[1725668322141,4.11,2232.3,2231.9,3.2078]
[1725668322344,0.31365,2232.3,2231.9,3.5215]
[1725668322546,0.31367,2232.2,2231.9,3.5215]
[1725668322746,0.31367,2232.2,2231.9,5.26157431]
[1725668323334,0.31367,2232.2,2231.9,3.5215]
[1725668323534,0.31367,2232.2,2231.9,5.26157431]
[1725668323741,0.31369,2232.0,2231.9,4.94787431]
[1725668323941,0.31369,2232.1,2231.9,3.2078]
[1725668324246,0.31369,2232.0,2231.9,3.2078]
[1725668325243,3.99196,2232.3,2231.9,3.2078]
[1725668326146,0.31369,2232.1,2231.9,3.2078]
[1725668326647,0.31369,2232.0,2231.8,1.74007431]
[1725668327342,0.31369,2232.0,2231.7,4.94787431]
[1725668327542,0.31369,2232.0,2231.7,5.26160431]
[1725668329252,0.31369,2232.0,2231.8,2.55560506]
[1725668329455,0.31369,2232.0,2231.8,0.31372]
[1725668330346,0.31369,2232.0,2231.7,5.26160431]
[1725668330552,0.31369,2232.0,2231.7,3.52153]
[1725668330745,0.31371,2231.9,2231.7,5.26160431]
[1725668331355,0.31371,2231.9,2231.7,3.52153]